fUSD/lending_fUSD_20260626
["ID","MTS","AMOUNT","RATE_DAILY","PERIOD"]
[426466227,1782423032000,-500.0,0.00018966,2]
[426466198,1782423032000,-500.0,0.00018966,2]
[426466199,1782423032000,-500.0,0.00018966,2]
[426466197,1782423032000,-313.25479449,0.00018966,2]
[426466194,1782423032000,-500.0,0.00017715,2]
[426466204,1782423032000,-500.0,0.00018966,2]
[426466206,1782423032000,-500.0,0.00018966,2]
[426466202,1782423032000,-500.0,0.00018966,2]
[426466212,1782423032000,-500.0,0.00018966,2]
[426466219,1782423032000,-500.0,0.00018966,2]
[426466218,1782423032000,-500.0,0.00018966,2]
[426466209,1782423032000,-500.0,0.00018966,2]
[426466210,1782423032000,-500.0,0.00018966,2]
[426466207,1782423032000,-500.0,0.00018966,2]
[426466214,1782423032000,-500.0,0.00018966,2]
[426466217,1782423032000,-500.0,0.00018966,2]
[426466213,1782423032000,-500.0,0.00018966,2]
[426466216,1782423032000,-500.0,0.00018966,2]
[426466215,1782423032000,-500.0,0.00018966,2]
[426466196,1782423032000,-500.0,0.00018966,2]
[426466211,1782423032000,-500.0,0.00018966,2]
[426466220,1782423032000,-500.0,0.00018966,2]
[426466222,1782423032000,-500.0,0.00018966,2]
[426466208,1782423032000,-500.0,0.00018966,2]
[426466192,1782423032000,-150.0,0.00017531,2]
[426466176,1782423032000,-794.16243774,0.00014053,2]
[426466193,1782423032000,-6262.3813,0.00017699,2]
[426466169,1782423032000,-500.0,0.00013698,2]
[426466161,1782423032000,-9999.99,0.00013548,2]
[426466162,1782423032000,-1234.76,0.00013548,2]
[426466163,1782423032000,-150.0,0.00013666,2]
[426466166,1782423032000,-500.0,0.00013698,2]
[426466167,1782423032000,-500.0,0.00013698,2]
[426466164,1782423032000,-500.0,0.00013698,2]
[426466165,1782423032000,-500.0,0.00013698,2]
[426466168,1782423032000,-500.0,0.00013698,2]
[426466178,1782423032000,-18747.99,0.00014117,2]
[426466174,1782423032000,-1100.0,0.000139,5]
[426466171,1782423032000,-250.0,0.00013784,2]
[426466173,1782423032000,-500.0,0.000138,5]
[426466189,1782423032000,-221.86199505,0.00016838,2]
[426466172,1782423032000,-247.89138039,0.00013794,2]
[426466181,1782423032000,-255.0,0.00014635,2]
[426466170,1782423032000,-500.0,0.00013698,2]
[426466179,1782423032000,-200.0,0.00014198,2]
[426466180,1782423032000,-166.66,0.00014331,2]
[426466182,1782423032000,-150.0,0.0001483,2]
[426466184,1782423032000,-6253.48069386,0.00015322,2]
[426466185,1782423032000,-1356.71148161,0.00015365,2]
[426466183,1782423032000,-447.24,0.00014842,2]
[426466187,1782423032000,-298.32,0.00015747,2]
[426466186,1782423032000,-171.24,0.00015548,2]
[426466188,1782423032000,-200.0,0.00016632,2]
[426466191,1782423032000,-1356.71148161,0.00017182,2]
[426466190,1782423032000,-6253.48069386,0.00017144,2]
[426466177,1782423032000,-8995.90069065,0.00014098,2]
[426466223,1782423032000,-500.0,0.00018966,2]
[426466254,1782423032000,-500.0,0.00018966,2]
[426466229,1782423032000,-500.0,0.00018966,2]
[426466269,1782423032000,-500.0,0.00018966,2]
[426466267,1782423032000,-500.0,0.00018966,2]
[426466263,1782423032000,-500.0,0.00018966,2]
[426466271,1782423032000,-500.0,0.00018966,2]
[426466262,1782423032000,-500.0,0.00018966,2]
[426466270,1782423032000,-500.0,0.00018966,2]
[426466265,1782423032000,-500.0,0.00018966,2]
[426466268,1782423032000,-500.0,0.00018966,2]
[426466261,1782423032000,-500.0,0.00018966,2]
[426466266,1782423032000,-500.0,0.00018966,2]
[426466264,1782423032000,-576.76489622,0.00018966,2]
[426466283,1782423032000,-6253.48069386,0.00018967,2]
[426466277,1782423032000,-500.0,0.00018966,2]
[426466259,1782423032000,-500.0,0.00018966,2]
[426466284,1782423032000,-1356.71148161,0.00018999,2]
[426466275,1782423032000,-500.0,0.00018966,2]
[426466273,1782423032000,-500.0,0.00018966,2]
[426466272,1782423032000,-500.0,0.00018966,2]
[426466278,1782423032000,-500.0,0.00018966,2]
[426466276,1782423032000,-500.0,0.00018966,2]
[426466279,1782423032000,-500.0,0.00018966,2]
[426466280,1782423032000,-500.0,0.00018966,2]
[426466281,1782423032000,-500.0,0.00018966,2]
[426466282,1782423032000,-607.67648962,0.00018966,2]
[426466285,1782423032000,-500.0,0.00019589,2]
[426466286,1782423032000,-298.32,0.00019683,2]
[426466287,1782423032000,-500.0,0.00019999,2]
[426466226,1782423032000,-500.0,0.00018966,2]
[426466274,1782423032000,-500.0,0.00018966,2]
[426466255,1782423032000,-500.0,0.00018966,2]
[426466260,1782423032000,-500.0,0.00018966,2]
[426466253,1782423032000,-500.0,0.00018966,2]
[426466225,1782423032000,-500.0,0.00018966,2]
[426466224,1782423032000,-500.0,0.00018966,2]
[426466256,1782423032000,-500.0,0.00018966,2]
[426466231,1782423032000,-500.0,0.00018966,2]
[426466232,1782423032000,-500.0,0.00018966,2]
[426466228,1782423032000,-500.0,0.00018966,2]
[426466230,1782423032000,-500.0,0.00018966,2]
[426466235,1782423032000,-500.0,0.00018966,2]
[426466233,1782423032000,-500.0,0.00018966,2]
[426466234,1782423032000,-500.0,0.00018966,2]
[426466244,1782423032000,-500.0,0.00018966,2]
[426466245,1782423032000,-500.0,0.00018966,2]
[426466241,1782423032000,-500.0,0.00018966,2]
[426466236,1782423032000,-500.0,0.00018966,2]
[426466242,1782423032000,-500.0,0.00018966,2]
[426466221,1782423032000,-500.0,0.00018966,2]
[426466237,1782423032000,-500.0,0.00018966,2]
[426466238,1782423032000,-500.0,0.00018966,2]
[426466247,1782423032000,-500.0,0.00018966,2]
[426466249,1782423032000,-500.0,0.00018966,2]
[426466252,1782423032000,-500.0,0.00018966,2]
[426466250,1782423032000,-500.0,0.00018966,2]
[426466248,1782423032000,-500.0,0.00018966,2]
[426466257,1782423032000,-500.0,0.00018966,2]
[426466258,1782423032000,-500.0,0.00018966,2]
[426466246,1782423032000,-500.0,0.00018966,2]
[426466243,1782423032000,-500.0,0.00018966,2]
[426466240,1782423032000,-500.0,0.00018966,2]
[426466251,1782423032000,-500.0,0.00018966,2]
[426466239,1782423032000,-500.0,0.00018966,2]
[426466299,1782423033000,-537.30185715,0.00019999,2]
[426466305,1782423033000,-170.180181,0.0002,2]
[426466308,1782423033000,-967.0,0.0002,2]
[426466306,1782423033000,-195.0,0.0002,2]
[426466304,1782423033000,-466.0,0.0002,2]
[426466309,1782423033000,-292.0,0.0002,2]
[426466307,1782423033000,-236.0,0.0002,2]
[426466312,1782423033000,-445.0,0.0002,2]
[426466313,1782423033000,-190.0,0.0002,2]
[426466303,1782423033000,-202.0,0.0002,2]
[426466301,1782423033000,-875.0,0.0002,2]
[426466302,1782423033000,-354.0,0.0002,2]
[426466294,1782423033000,-391.36478027,0.00019999,2]
[426466298,1782423033000,-500.0,0.00019999,2]
[426466293,1782423033000,-500.0,0.00019999,2]
[426466292,1782423033000,-155.03349578,0.00019999,2]
[426466289,1782423033000,-500.0,0.00019999,2]
[426466288,1782423033000,-193.62450315,0.00019999,2]
[426466296,1782423033000,-500.0,0.00019999,2]
[426466295,1782423033000,-500.0,0.00019999,2]
[426466290,1782423033000,-255.63036396,0.00019999,2]
[426466297,1782423033000,-500.0,0.00019999,2]
[426466291,1782423033000,-500.0,0.00019999,2]
[426466311,1782423033000,-338.0,0.0002,2]
[426466300,1782423033000,-789.0,0.0002,2]
[426466310,1782423033000,-154.0,0.0002,2]
[426466314,1782423033000,-221.86199505,0.00020177,2]
[426466315,1782423033000,-6253.48069386,0.00020789,2]
[426466337,1782423033000,-316.44980923,0.00022,2]
[426466338,1782423033000,-937.96827754,0.00022,2]
[426466332,1782423033000,-343.54490305,0.000218,2]
[426466334,1782423033000,-5000.0,0.00021918,2]
[426466335,1782423033000,-1357.77995069,0.00022,2]
[426466333,1782423033000,-271.82450685,0.000218,2]
[426466336,1782423033000,-472.55019077,0.00022,2]
[426466327,1782423033000,-445.0,0.00021,2]
[426466330,1782423033000,-1357.77995069,0.000218,2]
[426466328,1782423033000,-190.0,0.00021,2]
[426466331,1782423033000,-1820.26986757,0.000218,2]
[426466320,1782423033000,-202.0,0.00021,2]
[426466323,1782423033000,-236.0,0.00021,2]
[426466321,1782423033000,-466.0,0.00021,2]
[426466324,1782423033000,-967.0,0.00021,2]
[426466326,1782423033000,-338.0,0.00021,2]
[426466325,1782423033000,-292.0,0.00021,2]
[426466322,1782423033000,-195.0,0.00021,2]
[426466329,1782423033000,-298.32,0.00021652,2]
[426466340,1782423033000,-112.90049542,0.00022,2]
[426466318,1782423033000,-875.0,0.00021,2]
[426466317,1782423033000,-789.0,0.00021,2]
[426466319,1782423033000,-354.0,0.00021,2]
[426466339,1782423033000,-882.30159003,0.00022,2]
[426466316,1782423033000,-1356.71148161,0.00020816,2]
[426466350,1782423037000,-642.21089584,0.00022,2]
[426466349,1782423037000,-230.64440763,0.00022,2]
[426466400,1782423038000,-221.86199505,0.00023515,2]
[426466377,1782423038000,-6253.48069386,0.00022611,2]
[426466398,1782423038000,-6084.0,0.0002341,2]
[426466373,1782423038000,-1357.77995069,0.000226,2]
[426466376,1782423038000,-271.82450685,0.000226,2]
[426466381,1782423038000,-789.0,0.00023,2]
[426466392,1782423038000,-190.0,0.00023,2]
[426466380,1782423038000,-5106.98,0.0002298,2]
[426466391,1782423038000,-445.0,0.00023,2]
[426466382,1782423038000,-875.0,0.00023,2]
[426466384,1782423038000,-202.0,0.00023,2]
[426466383,1782423038000,-354.0,0.00023,2]
[426466385,1782423038000,-466.0,0.00023,2]
[426466388,1782423038000,-967.0,0.00023,2]
[426466387,1782423038000,-236.0,0.00023,2]
[426466390,1782423038000,-338.0,0.00023,2]
[426466389,1782423038000,-292.0,0.00023,2]
[426466386,1782423038000,-195.0,0.00023,2]
[426466393,1782423038000,-1357.77995069,0.000231,2]
[426466395,1782423038000,-1277.0,0.0002341,2]
[426466404,1782423038000,-185.92017077,0.00023636,2]
[426466399,1782423038000,-3649.0,0.0002341,2]
[426466379,1782423038000,-1357.77995069,0.000229,2]
[426466374,1782423038000,-1820.26986757,0.000226,2]
[426466361,1782423038000,-338.0,0.00022,2]
[426466375,1782423038000,-343.54490305,0.000226,2]
[426466401,1782423038000,-1357.77995069,0.000236,2]
[426466352,1782423038000,-271.82450685,0.00022,2]
[426466351,1782423038000,-232.78910416,0.00022,2]
[426466354,1782423038000,-122.17708825,0.00022,2]
[426466353,1782423038000,-354.0,0.00022,2]
[426466355,1782423038000,-79.82291175,0.00022,2]
[426466357,1782423038000,-195.0,0.00022,2]
[426466359,1782423038000,-967.0,0.00022,2]
[426466367,1782423038000,-271.82450685,0.000222,2]
[426466358,1782423038000,-236.0,0.00022,2]
[426466372,1782423038000,-271.82450685,0.000224,2]
[426466356,1782423038000,-466.0,0.00022,2]
[426466366,1782423038000,-343.54490305,0.000222,2]
[426466362,1782423038000,-445.0,0.00022,2]
[426466363,1782423038000,-190.0,0.00022,2]
[426466365,1782423038000,-1820.26986757,0.000222,2]
[426466364,1782423038000,-1357.77995069,0.000222,2]
[426466368,1782423038000,-176.20264111,0.00022352,2]
[426466370,1782423038000,-1820.26986757,0.000224,2]
[426466371,1782423038000,-343.54490305,0.000224,2]
[426466369,1782423038000,-1357.77995069,0.000224,2]
[426466378,1782423038000,-1356.71148161,0.00022632,2]
[426466360,1782423038000,-292.0,0.00022,2]
[426466394,1782423038000,-1357.77995069,0.000233,2]
[426466430,1782423038000,-875.0,0.00024,2]
[426466397,1782423038000,-831.014,0.0002341,2]
[426466439,1782423038000,-445.0,0.00024,2]
[426466431,1782423038000,-354.0,0.00024,2]
[426466440,1782423038000,-190.0,0.00024,2]
[426466428,1782423038000,-204.80467404,0.0002399,2]
[426466432,1782423038000,-202.0,0.00024,2]
[426466433,1782423038000,-466.0,0.00024,2]
[426466434,1782423038000,-195.0,0.00024,2]
[426466438,1782423038000,-338.0,0.00024,2]
[426466436,1782423038000,-967.0,0.00024,2]
[426466435,1782423038000,-236.0,0.00024,2]
[426466429,1782423038000,-789.0,0.00024,2]
[426466437,1782423038000,-292.0,0.00024,2]
[426466444,1782423038000,-204.80467404,0.00024538,2]
[426466446,1782423038000,-604.37,0.00024658,2]
[426466445,1782423038000,-1000.0,0.00024658,2]
[426466448,1782423038000,-204.80467404,0.00024812,2]
[426466451,1782423038000,-418.64904434,0.00024893,2]
[426466447,1782423038000,-1097.83,0.00024658,2]
[426466449,1782423038000,-375.01583841,0.00024893,2]
[426466442,1782423038000,-6253.48069386,0.00024433,2]
[426466450,1782423038000,-371.84034155,0.00024893,2]
[426466396,1782423038000,-383.0,0.0002341,2]
[426466443,1782423038000,-1356.71148161,0.00024449,2]
[426466424,1782423038000,-150.91059267,0.00023647,2]
[426466441,1782423038000,-204.80467404,0.00024264,2]
[426466427,1782423038000,-578.20924308,0.0002399,2]
[426466403,1782423038000,-187.5079192,0.00023636,2]
[426466420,1782423038000,-210.19413454,0.00023647,2]
[426466402,1782423038000,-298.32,0.0002362,2]
[426466406,1782423038000,-183.63346293,0.00023636,2]
[426466408,1782423038000,-208.63313888,0.00023638,2]
[426466407,1782423038000,-177.41731561,0.00023636,2]
[426466409,1782423038000,-157.22135396,0.0002364,2]
[426466412,1782423038000,-150.41399244,0.0002364,2]
[426466410,1782423038000,-161.48339807,0.0002364,2]
[426466411,1782423038000,-159.41234239,0.0002364,2]
[426466414,1782423038000,-168.88567983,0.0002364,2]
[426466405,1782423038000,-209.32452217,0.00023636,2]
[426466413,1782423038000,-150.91558337,0.0002364,2]
[426466415,1782423038000,-170.62543649,0.0002364,2]
[426466416,1782423038000,-164.87984725,0.0002364,2]
[426466417,1782423038000,-218.3832798,0.0002364,2]
[426466422,1782423038000,-185.09348578,0.00023647,2]
[426466423,1782423038000,-257.69766309,0.00023647,2]
[426466418,1782423038000,-151.69821769,0.00023647,2]
[426466421,1782423038000,-229.88538749,0.00023647,2]
[426466425,1782423038000,-1357.77995069,0.000238,2]
[426466426,1782423038000,-500.0,0.00023918,2]
[426466419,1782423038000,-164.64496917,0.00023647,2]
[426466495,1782423039000,-532.25194683,0.00025731,2]
[426466497,1782423039000,-292.65589906,0.00025735,2]
[426466492,1782423039000,-557.76051232,0.00025731,2]
[426466487,1782423039000,-204.80467404,0.00025634,2]
[426466489,1782423039000,-562.52375761,0.00025731,2]
[426466483,1782423039000,-201.41995491,0.00025,2]
[426466480,1782423039000,-297.0,0.00025,2]
[426466491,1782423039000,-219.44237745,0.00025731,2]
[426466490,1782423039000,-273.62055397,0.00025731,2]
[426466486,1782423039000,-204.80467404,0.0002536,2]
[426466494,1782423039000,-550.9003888,0.00025731,2]
[426466485,1782423039000,-1097.83,0.0002532,7]
[426466503,1782423039000,-260.00599245,0.00025735,2]
[426466508,1782423039000,-511.87630946,0.00025735,2]
[426466499,1782423039000,-484.45019421,0.00025735,2]
[426466496,1782423039000,-264.65685758,0.00025731,2]
[426466498,1782423039000,-471.66406189,0.00025735,2]
[426466502,1782423039000,-451.24197731,0.00025735,2]
[426466500,1782423039000,-478.23702718,0.00025735,2]
[426466501,1782423039000,-225.49734749,0.00025735,2]
[426466515,1782423039000,-689.65616247,0.00025743,2]
[426466505,1782423039000,-164.92713182,0.00025735,2]
[426466504,1782423039000,-288.57605103,0.00025735,2]
[426466507,1782423039000,-506.6570395,0.00025735,2]
[426466506,1782423039000,-452.7467501,0.00025735,2]
[426466484,1782423039000,-204.80467404,0.00025086,2]
[426466493,1782423039000,-627.97356651,0.00025731,2]
[426466488,1782423039000,-173.43747515,0.00025731,2]
[426466456,1782423039000,-189.05375955,0.00024897,2]
[426466481,1782423039000,-338.0,0.00025,2]
[426466452,1782423039000,-367.26692586,0.00024893,2]
[426466453,1782423039000,-354.83463122,0.00024893,2]
[426466455,1782423039000,-322.96679614,0.00024897,2]
[426466465,1782423039000,-303.39643539,0.00024904,2]
[426466458,1782423039000,-318.82468479,0.00024897,2]
[426466457,1782423039000,-241.34118881,0.00024897,2]
[426466454,1782423039000,-314.44270793,0.00024897,2]
[426466459,1782423039000,-300.82798488,0.00024897,2]
[426466462,1782423039000,-341.25087297,0.00024897,2]
[426466461,1782423039000,-337.77135967,0.00024897,2]
[426466460,1782423039000,-301.83116674,0.00024897,2]
[426466464,1782423039000,-436.7665596,0.00024898,2]
[426466463,1782423039000,-201.68220185,0.00024897,2]
[426466466,1782423039000,-329.28993833,0.00024904,2]
[426466469,1782423039000,-370.18697155,0.00024904,2]
[426466473,1782423039000,-883.0,0.00025,2]
[426466471,1782423039000,-301.82118534,0.00024904,2]
[426466472,1782423039000,-789.0,0.00025,2]
[426466474,1782423039000,-360.0,0.00025,2]
[426466468,1782423039000,-459.77077498,0.00024904,2]
[426466476,1782423039000,-481.0,0.00025,2]
[426466475,1782423039000,-216.0,0.00025,2]
[426466477,1782423039000,-195.0,0.00025,2]
[426466467,1782423039000,-420.38826909,0.00024904,2]
[426466509,1782423039000,-188.74167008,0.00025736,2]
[426466478,1782423039000,-248.0,0.00025,2]
[426466479,1782423039000,-982.0,0.00025,2]
[426466482,1782423039000,-463.0,0.00025,2]
[426466510,1782423039000,-655.1498394,0.00025736,2]
[426466470,1782423039000,-515.39532619,0.00024904,2]
[426466511,1782423039000,-320.59970299,0.00025743,2]
[426466549,1782423039000,-352.23777355,0.0002629,2]
[426466550,1782423039000,-160.52614116,0.0002629,2]
[426466548,1782423039000,-419.72336408,0.0002629,2]
[426466551,1782423039000,-222.47990996,0.0002629,2]
[426466547,1782423039000,-301.14518982,0.0002629,2]
[426466541,1782423039000,-547.24110794,0.0002629,2]
[426466552,1782423039000,-184.1702866,0.0002629,2]
[426466553,1782423039000,-406.14741563,0.0002629,2]
[426466555,1782423039000,-371.92863525,0.0002629,2]
[426466554,1782423039000,-743.68068309,0.0002629,2]
[426466559,1782423039000,-709.66926244,0.0002629,2]
[426466556,1782423039000,-837.29808868,0.0002629,2]
[426466558,1782423039000,-734.53385173,0.0002629,2]
[426466557,1782423039000,-160.30085569,0.0002629,2]
[426466563,1782423039000,-628.88541585,0.00026294,2]
[426466562,1782423039000,-585.31179812,0.00026294,2]
[426466560,1782423039000,-529.31371516,0.0002629,2]
[426466567,1782423039000,-282.13967237,0.00026294,2]
[426466565,1782423039000,-311.52983143,0.00026294,2]
[426466569,1782423039000,-430.16873336,0.00026294,2]
[426466566,1782423039000,-567.16127866,0.00026294,2]
[426466571,1782423039000,-386.57456617,0.00026294,2]
[426466568,1782423039000,-724.02356644,0.00026294,2]
[426466572,1782423039000,-637.64936958,0.00026294,2]
[426466573,1782423039000,-450.99469499,0.00026294,2]
[426466570,1782423039000,-185.5123728,0.00026294,2]
[426466512,1782423039000,-455.09465308,0.00025743,2]
[426466546,1782423039000,-394.52899451,0.0002629,2]
[426466545,1782423039000,-427.69382323,0.0002629,2]
[426466564,1782423039000,-645.93359228,0.00026294,2]
[426466544,1782423039000,-312.02464361,0.0002629,2]
[426466513,1782423039000,-493.9349075,0.00025743,2]
[426466543,1782423039000,-395.9835908,0.0002629,2]
[426466514,1782423039000,-630.58240363,0.00025743,2]
[426466516,1782423039000,-555.28045733,0.00025743,2]
[426466518,1782423039000,-452.73177801,0.00025743,2]
[426466519,1782423039000,-180.93493759,0.00025743,2]
[426466521,1782423039000,-204.80467404,0.00025908,2]
[426466517,1782423039000,-773.09298928,0.00025743,2]
[426466523,1782423039000,-4627.08549938,0.00026,2]
[426466527,1782423039000,-150.41477286,0.00026192,2]
[426466520,1782423039000,-155.79100857,0.00025743,2]
[426466524,1782423039000,-150.0,0.00026077,5]
[426466526,1782423039000,-2002.64738984,0.0002619,2]
[426466525,1782423039000,-204.80467404,0.00026182,2]
[426466522,1782423039000,-1097.83,0.00025983,30]
[426466539,1782423039000,-401.37574548,0.0002629,2]
[426466542,1782423039000,-165.78920298,0.0002629,2]
[426466529,1782423039000,-6253.48069386,0.00026256,2]
[426466536,1782423039000,-229.90086396,0.0002629,2]
[426466535,1782423039000,-750.03167681,0.0002629,2]
[426466538,1782423039000,-413.45215901,0.0002629,2]
[426466531,1782423039000,-392.47097785,0.0002629,2]
[426466537,1782423039000,-304.29606457,0.0002629,2]
[426466540,1782423039000,-159.76145998,0.0002629,2]
[426466533,1782423039000,-364.72185813,0.0002629,2]
[426466534,1782423039000,-346.87495029,0.0002629,2]
[426466530,1782423039000,-1356.71148161,0.00026266,2]
[426466528,1782423039000,-4627.08549938,0.00026222,2]
[426466532,1782423039000,-429.76400259,0.0002629,2]
[426466617,1782423040000,-419.99984147,0.00026302,2]
[426466616,1782423040000,-183.39144829,0.00026302,2]
[426466604,1782423040000,-606.79287078,0.00026302,2]
[426466612,1782423040000,-344.04723955,0.00026302,2]
[426466611,1782423040000,-603.64237068,0.00026302,2]
[426466610,1782423040000,-408.00836842,0.00026302,2]
[426466609,1782423040000,-1030.79065238,0.00026302,2]
[426466608,1782423040000,-740.3739431,0.00026302,2]
[426466602,1782423040000,-422.14296237,0.00026302,2]
[426466605,1782423040000,-658.57987666,0.00026302,2]
[426466615,1782423040000,-443.49372262,0.00026302,2]
[426466607,1782423040000,-919.54154996,0.00026302,2]
[426466621,1782423040000,-6084.0,0.0002641,2]
[426466627,1782423040000,-204.80467404,0.0002673,2]
[426466622,1782423040000,-3649.0,0.0002641,2]
[426466624,1782423040000,-204.80467404,0.00026456,2]
[426466618,1782423040000,-311.58201713,0.00026302,2]
[426466626,1782423040000,-4627.08549938,0.00026667,2]
[426466620,1782423040000,-383.0,0.0002641,2]
[426466623,1782423040000,-4627.08549938,0.00026444,2]
[426466625,1782423040000,-1097.83,0.00026646,2]
[426466628,1782423040000,-214.5,0.000268,2]
[426466637,1782423040000,-221.86199505,0.00026853,2]
[426466636,1782423040000,-191.53036183,0.00026853,4]
[426466638,1782423040000,-758.49108847,0.00026861,2]
[426466629,1782423040000,-918.16731466,0.00026849,2]
[426466606,1782423040000,-840.77653818,0.00026302,2]
[426466619,1782423040000,-1277.0,0.0002641,2]
[426466614,1782423040000,-430.13393766,0.00026302,2]
[426466575,1782423040000,-234.16705774,0.00026294,2]
[426466603,1782423040000,-494.45511855,0.00026302,2]
[426466630,1782423040000,-786.10676981,0.00026853,2]
[426466574,1782423040000,-370.51682958,0.00026294,2]
[426466576,1782423040000,-438.88475491,0.00026294,2]
[426466578,1782423040000,-200.13721741,0.00026294,2]
[426466588,1782423040000,-419.13387339,0.00026295,2]
[426466581,1782423040000,-577.15210206,0.00026294,2]
[426466579,1782423040000,-520.0119849,0.00026294,2]
[426466577,1782423040000,-601.65596975,0.00026294,2]
[426466580,1782423040000,-157.81993866,0.00026294,2]
[426466587,1782423040000,-325.62749479,0.00026294,2]
[426466584,1782423040000,-682.50174595,0.00026294,2]
[426466583,1782423040000,-675.54271933,0.00026294,2]
[426466586,1782423040000,-605.04660556,0.00026294,2]
[426466585,1782423040000,-659.519389,0.00026294,2]
[426466589,1782423040000,-377.48334015,0.00026295,2]
[426466601,1782423040000,-392.53363539,0.00026302,2]
[426466590,1782423040000,-406.65205699,0.00026295,2]
[426466593,1782423040000,-168.69072182,0.00026302,2]
[426466592,1782423040000,-445.65830061,0.00026302,2]
[426466591,1782423040000,-873.53311921,0.00026295,2]
[426466600,1782423040000,-171.69354064,0.00026302,2]
[426466594,1782423040000,-432.17614683,0.00026302,2]
[426466598,1782423040000,-164.56818784,0.00026302,2]
[426466599,1782423040000,-393.65098592,0.00026302,2]
[426466597,1782423040000,-405.11519904,0.00026302,2]
[426466595,1782423040000,-480.89955448,0.00026302,2]
[426466596,1782423040000,-406.5984566,0.00026302,2]
[426466613,1782423040000,-361.86987517,0.00026302,2]
[426466632,1782423040000,-752.06996219,0.00026853,2]
[426466582,1782423040000,-603.66233347,0.00026294,2]
[426466633,1782423040000,-754.57791684,0.00026853,2]
[426466677,1782423040000,-561.0895715,0.00027397,2]
[426466676,1782423040000,-374.05971434,0.00027397,2]
[426466673,1782423040000,-209.76622463,0.00027397,2]
[426466668,1782423040000,-3096.22,0.00027397,2]
[426466667,1782423040000,-530.57,0.00027397,2]
[426466669,1782423040000,-8876.52,0.00027397,10]
[426466675,1782423040000,-187.02985717,0.00027397,2]
[426466671,1782423040000,-14105.78,0.00027397,10]
[426466674,1782423040000,-419.53244926,0.00027397,2]
[426466679,1782423040000,-761.89,0.000274,7]
[426466689,1782423040000,-344.95164055,0.00027608,2]
[426466680,1782423040000,-1383.89,0.000274,7]
[426466686,1782423040000,-500.0,0.000275,7]
[426466672,1782423040000,-355.3457445,0.00027397,2]
[426466683,1782423040000,-1085.0,0.00027433,5]
[426466678,1782423040000,-748.11942867,0.00027397,2]
[426466687,1782423040000,-204.80467404,0.00027552,2]
[426466684,1782423040000,-872.0,0.00027433,5]
[426466688,1782423040000,-4627.08549938,0.00027556,2]
[426466685,1782423040000,-151.49213422,0.00027497,16]
[426466691,1782423040000,-151.49213422,0.00027634,18]
[426466690,1782423040000,-2002.64738979,0.00027631,2]
[426466694,1782423040000,-943.32812378,0.00027691,2]
[426466692,1782423040000,-994.32445211,0.00027687,2]
[426466695,1782423040000,-956.47405437,0.00027691,2]
[426466693,1782423040000,-1101.80077759,0.00027687,2]
[426466696,1782423040000,-905.49350021,0.00027691,2]
[426466631,1782423040000,-797.06171197,0.00026853,2]
[426466681,1782423040000,-151.49213422,0.00027401,12]
[426466666,1782423040000,-604.37,0.00027397,2]
[426466682,1782423040000,-151.49213422,0.00027427,14]
[426466660,1782423040000,-500.0,0.00027397,2]
[426466634,1782423040000,-844.42839917,0.00026853,2]
[426466670,1782423040000,-16926.93,0.00027397,10]
[426466635,1782423040000,-853.12718244,0.00026853,2]
[426466639,1782423040000,-823.22484583,0.00026861,2]
[426466642,1782423040000,-925.46742888,0.00026861,2]
[426466643,1782423040000,-1288.48831547,0.00026861,2]
[426466645,1782423040000,-4627.08549938,0.00026889,2]
[426466640,1782423040000,-1050.97067272,0.00026861,2]